{"text_format":"1","workbook":"xlsx","n_sheets":5,"sheets":["TBM회의록(양중 및 가공)","TBM회의록(금속 및 철물 시공)","TBM회의록(외부도장작업)","TBM회의록(내부도장작업","TBM템플릿"],"not_rendered":{"charts":0,"images":0,"macros":1,"external_links":0,"defined_names":117,"comments":0,"pivot_tables":0},"unopened":[],"bounds":{"document_bytes":16777216,"sheet_cells":100000,"rows_first":2000,"rows_last":500,"rows_between":2000,"halvings":0,"cell_chars":16384,"cell_head_chars":4096},"cells_cut":0,"cells_raw":0,"read":"whole","date_system":"1900"}

{"sheet":"TBM회의록(양중 및 가공)","index":0,"n_rows":34,"n_cols":12,"rows_kept":34,"cut":false,"hidden":false,"merged":[[3,0,3,1],[3,2,3,7],[3,9,3,14],[1,0,1,14],[2,0,2,1],[2,2,2,3],[2,10,2,11],[2,12,2,14],[4,0,4,1],[4,2,4,14],[6,0,6,14],[7,0,7,6],[7,7,7,14],[8,0,12,6],[8,7,9,8],[8,9,8,10],[8,11,8,14],[9,9,9,14],[10,7,11,14],[12,7,12,14],[13,0,13,6],[13,10,13,14],[14,0,26,6],[14,10,14,14],[15,10,15,14],[16,10,16,14],[17,10,17,14],[18,10,18,14],[24,10,24,14],[25,10,25,14],[26,10,26,14],[19,10,19,14],[20,10,20,14],[21,10,21,14],[22,10,22,14],[23,10,23,14],[32,0,32,6],[32,10,32,14],[33,0,33,6],[33,10,33,14],[27,0,27,6],[27,10,27,14],[28,10,28,14],[30,10,30,14],[31,10,31,14],[29,10,29,14]]}
["4.[별지] 작업 전 안전점검(TBM) 회의록"]
[{"$f":"\"ToolBoxMeeting일지 / \" & A14","v":"ToolBoxMeeting일지 / 자재 및 도구 반입 가공"}]
["TBM 일시",null,2023,null,"년",12,"월",20,"일",null,"날씨 :"]
["작업장명",null,{"$f":"TBM템플릿!B2","v":0},null,null,null,null,null,"TBM장소 :",{"$f":"TBM템플릿!F2","v":0}]
["작업내용",null,{"$f":"IF(A14=\"\",\"\",IF(VLOOKUP(A14,TBM템플릿!$A$5:$N$112,6,FALSE)=\"\",\"\",VLOOKUP(A14,TBM템플릿!$A$5:$N$112,6,FALSE)))","v":{"$error":"#N/A"}}]
[]
["■작업 내용 및 TBM시 전달내용\n※주요 작업내용 및 중대재해로 이어질 수 있는 위험요인과 안전조치 여부 재확인\n  근로자의 작업안전 준수사항 및 주의사항, 재해/위험상황 발생 시 보고 철차 등"]
["공통 안전 조치 사항",null,null,null,null,null,null,"TBM참가자 확인"]
["■작업 중 안전시설 유지(부득이 철거시 안전조치 후 작업, 작업 후 반드시 안전시설 복구)\n■작업 중 / 작업 후 정리정돈 필수 확인(안전은 정리정돈에서 시작된다)\n■공정에 맞는 개인안전보호구 착용 필수\n(안전모, 안전화, 고소작업자 전원 안전대 착용, 방진마스크, 보안면, 보안경)\n■건설기계 사용시 전담안전요원 배치 필수, 기계 전도방지 필수",null,null,null,null,null,null,"TBM리더 ",null,{"$f":"\"소속 : \" &IF(A14=\"\",\"\",IF(VLOOKUP(A14,TBM템플릿!$A$5:$N$112,6,FALSE)=\"\",\"\",VLOOKUP(A14,TBM템플릿!$A$5:$N$112,2,FALSE)))","v":{"$error":"#N/A"}},null,{"$f":"\"성명 : \"&IF(A14=\"\",\"\",IF(VLOOKUP(A14,TBM템플릿!$A$5:$N$112,6,FALSE)=\"\",\"\",VLOOKUP(A14,TBM템플릿!$A$5:$N$112,3,FALSE)))","v":{"$error":"#N/A"}}]
[null,null,null,null,null,null,null,null,null,{"$f":"\"  연락처:             \" &IF(A14=\"\",\"\",IF(VLOOKUP(A14,TBM템플릿!$A$5:$N$112,6,FALSE)=\"\",\"\",VLOOKUP(A14,TBM템플릿!$A$5:$N$112,5,FALSE)))","v":{"$error":"#N/A"}}]
[null,null,null,null,null,null,null,"※상기TBM 리더는 금일 현장에서 위급사항 발생시 현장소장을 보조하여 지시한 업무를 수행 함"]
[]
[null,null,null,null,null,null,null,"※참가자 전원은 공동안전조치사항 및 해당 작업에 대한 안전조치 사항을 반드시 읽고 숙지하며, 미비된 안전조치를 확인하고 작업을 시작하시기 바랍니다."]
["자재 및 도구 반입 가공",null,null,null,null,null,null,"번호","구분","성명(자필)","전화번호"]
[{"$f":"IF(A14=\"\",\"\",\"▶\"&VLOOKUP(A14,TBM템플릿!$A$5:$Q$112,7,FALSE)&\nIF(VLOOKUP(A14,TBM템플릿!$A$5:$Q$112,8,FALSE)=\"\",VLOOKUP(A14,TBM템플릿!$A$5:$Q$112,8,FALSE),\"▶\"&VLOOKUP(A14,TBM템플릿!$A$5:$Q$112,8,FALSE))&\nIF(VLOOKUP(A14,TBM템플릿!$A$5:$Q$112,9,FALSE)=\"\",VLOOKUP(A14,TBM템플릿!$A$5:$Q$112,9,FALSE),\"▶\"&VLOOKUP(A14,TBM템플릿!$A$5:$Q$112,9,FALSE))&\nIF(VLOOKUP(A14,TBM템플릿!$A$5:$Q$112,10,FALSE)=\"\",VLOOKUP(A14,TBM템플릿!$A$5:$Q$112,10,FALSE),\"▶\"&VLOOKUP(A14,TBM템플릿!$A$5:$Q$112,10,FALSE))&\nIF(VLOOKUP(A14,TBM템플릿!$A$5:$Q$112,11,FALSE)=\"\",VLOOKUP(A14,TBM템플릿!$A$5:$Q$112,11,FALSE),\"▶\"&VLOOKUP(A14,TBM템플릿!$A$5:$Q$112,11,FALSE))&\nIF(VLOOKUP(A14,TBM템플릿!$A$5:$Q$112,12,FALSE)=\"\",VLOOKUP(A14,TBM템플릿!$A$5:$Q$112,12,FALSE),\"▶\"&VLOOKUP(A14,TBM템플릿!$A$5:$Q$112,12,FALSE))&\nIF(VLOOKUP(A14,TBM템플릿!$A$5:$Q$112,13,FALSE)=\"\",VLOOKUP(A14,TBM템플릿!$A$5:$Q$112,13,FALSE),\"▶\"&VLOOKUP(A14,TBM템플릿!$A$5:$Q$112,13,FALSE))&\nIF(VLOOKUP(A14,TBM템플릿!$A$5:$Q$112,14,FALSE)=\"\",VLOOKUP(A14,TBM템플릿!$A$5:$Q$112,14,FALSE),\"▶\"&VLOOKUP(A14,TBM템플릿!$A$5:$Q$112,14,FALSE))&\nIF(VLOOKUP(A14,TBM템플릿!$A$5:$Q$112,15,FALSE)=\"\",VLOOKUP(A14,TBM템플릿!$A$5:$Q$112,15,FALSE),\"▶\"&VLOOKUP(A14,TBM템플릿!$A$5:$Q$112,15,FALSE))&\nIF(VLOOKUP(A14,TBM템플릿!$A$5:$Q$112,16,FALSE)=\"\",VLOOKUP(A14,TBM템플릿!$A$5:$Q$112,16,FALSE),\"▶\"&VLOOKUP(A14,TBM템플릿!$A$5:$Q$112,16,FALSE)))","v":{"$error":"#N/A"}},null,null,null,null,null,null,1,null,null,"010-"]
[null,null,null,null,null,null,null,{"$f":"H15+1","v":2},null,null,"010-"]
[null,null,null,null,null,null,null,{"$f":"H16+1","v":3},null,null,"010-"]
[null,null,null,null,null,null,null,4,null,null,"010-"]
[null,null,null,null,null,null,null,5,null,null,"010-"]
[null,null,null,null,null,null,null,6,null,null,"010-"]
[null,null,null,null,null,null,null,7,null,null,"010-"]
[null,null,null,null,null,null,null,8,null,null,"010-"]
[null,null,null,null,null,null,null,9,null,null,"010-"]
[null,null,null,null,null,null,null,10,null,null,"010-"]
[null,null,null,null,null,null,null,11,null,null,"010-"]
[null,null,null,null,null,null,null,12,null,null,"010-"]
[null,null,null,null,null,null,null,13,null,null,"010-"]
["추가 안전 및 전달사항",null,null,null,null,null,null,null,"조공"]
[null,null,null,null,null,null,null,1,null,null,"010-"]
[null,null,null,null,null,null,null,{"$f":"H29+1","v":2},null,null,"010-"]
[null,null,null,null,null,null,null,3,null,null,"010-"]
[null,null,null,null,null,null,null,4,null,null,"010-"]
[null,null,null,null,null,null,null,5,null,null,"010-"]
[null,null,null,null,null,null,null,6,null,null,"010-"]

{"sheet":"TBM회의록(금속 및 철물 시공)","index":1,"n_rows":34,"n_cols":21,"rows_kept":34,"cut":false,"hidden":false,"merged":[[3,0,3,1],[3,2,3,7],[3,9,3,14],[1,0,1,14],[2,0,2,1],[2,2,2,3],[2,10,2,11],[2,12,2,14],[4,0,4,1],[4,2,4,14],[6,0,6,14],[7,0,7,6],[7,7,7,14],[8,0,12,6],[8,7,9,8],[8,9,8,10],[8,11,8,14],[9,9,9,14],[10,7,11,14],[12,7,12,14],[13,0,13,6],[13,10,13,14],[14,0,26,6],[14,10,14,14],[15,10,15,14],[16,10,16,14],[17,10,17,14],[18,10,18,14],[24,10,24,14],[25,10,25,14],[26,10,26,14],[19,10,19,14],[20,10,20,14],[21,10,21,14],[22,10,22,14],[23,10,23,14],[32,0,32,6],[32,10,32,14],[33,0,33,6],[33,10,33,14],[27,0,27,6],[27,10,27,14],[28,10,28,14],[30,10,30,14],[31,10,31,14],[29,10,29,14]]}
["4.[별지] 작업 전 안전점검(TBM) 회의록"]
[{"$f":"\"ToolBoxMeeting일지 / \" & A14","v":"ToolBoxMeeting일지 / 금속 및 잡철물 시공"}]
["TBM 일시",null,2023,null,"년",12,"월",20,"일",null,"날씨 :"]
["작업장명",null,{"$f":"TBM템플릿!B2","v":0},null,null,null,null,null,"TBM장소 :",{"$f":"TBM템플릿!F2","v":0}]
["작업내용",null,{"$f":"IF(A14=\"\",\"\",IF(VLOOKUP(A14,TBM템플릿!$A$5:$N$112,6,FALSE)=\"\",\"\",VLOOKUP(A14,TBM템플릿!$A$5:$N$112,6,FALSE)))","v":{"$error":"#N/A"}}]
[]
["■작업 내용 및 TBM시 전달내용\n※주요 작업내용 및 중대재해로 이어질 수 있는 위험요인과 안전조치 여부 재확인\n  근로자의 작업안전 준수사항 및 주의사항, 재해/위험상황 발생 시 보고 철차 등"]
["공통 안전 조치 사항",null,null,null,null,null,null,"TBM참가자 확인"]
["■작업 중 안전시설 유지(부득이 철거시 안전조치 후 작업, 작업 후 반드시 안전시설 복구)\n■작업 중 / 작업 후 정리정돈 필수 확인(안전은 정리정돈에서 시작된다)\n■공정에 맞는 개인안전보호구 착용 필수\n(안전모, 안전화, 고소작업자 전원 안전대 착용, 방진마스크, 보안면, 보안경)\n■건설기계 사용시 전담안전요원 배치 필수, 기계 전도방지 필수",null,null,null,null,null,null,"TBM리더 ",null,{"$f":"\"소속 : \" &IF(A14=\"\",\"\",IF(VLOOKUP(A14,TBM템플릿!$A$5:$N$112,6,FALSE)=\"\",\"\",VLOOKUP(A14,TBM템플릿!$A$5:$N$112,2,FALSE)))","v":{"$error":"#N/A"}},null,{"$f":"\"성명 : \"&IF(A14=\"\",\"\",IF(VLOOKUP(A14,TBM템플릿!$A$5:$N$112,6,FALSE)=\"\",\"\",VLOOKUP(A14,TBM템플릿!$A$5:$N$112,3,FALSE)))","v":{"$error":"#N/A"}}]
[null,null,null,null,null,null,null,null,null,{"$f":"\"  연락처:             \" &IF(A14=\"\",\"\",IF(VLOOKUP(A14,TBM템플릿!$A$5:$N$112,6,FALSE)=\"\",\"\",VLOOKUP(A14,TBM템플릿!$A$5:$N$112,5,FALSE)))","v":{"$error":"#N/A"}}]
[null,null,null,null,null,null,null,"※상기TBM 리더는 금일 현장에서 위급사항 발생시 현장소장을 보조하여 지시한 업무를 수행 함"]
[]
[null,null,null,null,null,null,null,"※참가자 전원은 공동안전조치사항 및 해당 작업에 대한 안전조치 사항을 반드시 읽고 숙지하며, 미비된 안전조치를 확인하고 작업을 시작하시기 바랍니다."]
["금속 및 잡철물 시공",null,null,null,null,null,null,"번호","구분","성명(자필)","전화번호"]
[{"$f":"IF(A14=\"\",\"\",\"▶\"&VLOOKUP(A14,TBM템플릿!$A$5:$Q$112,7,FALSE)&\nIF(VLOOKUP(A14,TBM템플릿!$A$5:$Q$112,8,FALSE)=\"\",VLOOKUP(A14,TBM템플릿!$A$5:$Q$112,8,FALSE),\"▶\"&VLOOKUP(A14,TBM템플릿!$A$5:$Q$112,8,FALSE))&\nIF(VLOOKUP(A14,TBM템플릿!$A$5:$Q$112,9,FALSE)=\"\",VLOOKUP(A14,TBM템플릿!$A$5:$Q$112,9,FALSE),\"▶\"&VLOOKUP(A14,TBM템플릿!$A$5:$Q$112,9,FALSE))&\nIF(VLOOKUP(A14,TBM템플릿!$A$5:$Q$112,10,FALSE)=\"\",VLOOKUP(A14,TBM템플릿!$A$5:$Q$112,10,FALSE),\"▶\"&VLOOKUP(A14,TBM템플릿!$A$5:$Q$112,10,FALSE))&\nIF(VLOOKUP(A14,TBM템플릿!$A$5:$Q$112,11,FALSE)=\"\",VLOOKUP(A14,TBM템플릿!$A$5:$Q$112,11,FALSE),\"▶\"&VLOOKUP(A14,TBM템플릿!$A$5:$Q$112,11,FALSE))&\nIF(VLOOKUP(A14,TBM템플릿!$A$5:$Q$112,12,FALSE)=\"\",VLOOKUP(A14,TBM템플릿!$A$5:$Q$112,12,FALSE),\"▶\"&VLOOKUP(A14,TBM템플릿!$A$5:$Q$112,12,FALSE))&\nIF(VLOOKUP(A14,TBM템플릿!$A$5:$Q$112,13,FALSE)=\"\",VLOOKUP(A14,TBM템플릿!$A$5:$Q$112,13,FALSE),\"▶\"&VLOOKUP(A14,TBM템플릿!$A$5:$Q$112,13,FALSE))&\nIF(VLOOKUP(A14,TBM템플릿!$A$5:$Q$112,14,FALSE)=\"\",VLOOKUP(A14,TBM템플릿!$A$5:$Q$112,14,FALSE),\"▶\"&VLOOKUP(A14,TBM템플릿!$A$5:$Q$112,14,FALSE))&\nIF(VLOOKUP(A14,TBM템플릿!$A$5:$Q$112,15,FALSE)=\"\",VLOOKUP(A14,TBM템플릿!$A$5:$Q$112,15,FALSE),\"▶\"&VLOOKUP(A14,TBM템플릿!$A$5:$Q$112,15,FALSE))&\nIF(VLOOKUP(A14,TBM템플릿!$A$5:$Q$112,16,FALSE)=\"\",VLOOKUP(A14,TBM템플릿!$A$5:$Q$112,16,FALSE),\"▶\"&VLOOKUP(A14,TBM템플릿!$A$5:$Q$112,16,FALSE)))","v":{"$error":"#N/A"}},null,null,null,null,null,null,1,null,null,"010-"]
[null,null,null,null,null,null,null,{"$f":"H15+1","v":2},null,null,"010-"]
[null,null,null,null,null,null,null,{"$f":"H16+1","v":3},null,null,"010-"]
[null,null,null,null,null,null,null,4,null,null,"010-",null,null,null,null,null,null,null,null,null,"`"]
[null,null,null,null,null,null,null,5,null,null,"010-"]
[null,null,null,null,null,null,null,6,null,null,"010-"]
[null,null,null,null,null,null,null,7,null,null,"010-"]
[null,null,null,null,null,null,null,8,null,null,"010-"]
[null,null,null,null,null,null,null,9,null,null,"010-"]
[null,null,null,null,null,null,null,10,null,null,"010-"]
[null,null,null,null,null,null,null,11,null,null,"010-"]
[null,null,null,null,null,null,null,12,null,null,"010-"]
[null,null,null,null,null,null,null,13,null,null,"010-"]
["추가 안전 및 전달사항",null,null,null,null,null,null,null,"조공"]
[null,null,null,null,null,null,null,1,null,null,"010-"]
[null,null,null,null,null,null,null,{"$f":"H29+1","v":2},null,null,"010-"]
[null,null,null,null,null,null,null,3,null,null,"010-"]
[null,null,null,null,null,null,null,4,null,null,"010-"]
[null,null,null,null,null,null,null,5,null,null,"010-"]
[null,null,null,null,null,null,null,6,null,null,"010-"]

{"sheet":"TBM회의록(외부도장작업)","index":2,"n_rows":36,"n_cols":21,"rows_kept":36,"cut":false,"hidden":false,"merged":[[3,0,3,1],[3,2,3,7],[3,9,3,14],[1,0,1,14],[2,0,2,1],[2,2,2,3],[2,10,2,11],[2,12,2,14],[4,0,4,1],[4,2,4,14],[6,0,6,14],[7,0,7,6],[7,7,7,14],[8,0,9,6],[10,0,10,6],[11,0,12,6],[13,0,14,6],[11,7,13,14],[14,10,14,14],[8,7,9,8],[8,9,8,10],[8,11,8,14],[9,9,9,14],[10,7,10,14],[21,10,21,14],[22,10,22,14],[23,10,23,14],[24,10,24,14],[25,10,25,14],[15,0,15,6],[15,10,15,14],[16,10,16,14],[17,10,17,14],[18,10,18,14],[16,0,19,6],[19,10,19,14],[20,0,23,6],[24,0,28,6],[34,0,34,6],[34,10,34,14],[35,0,35,6],[35,10,35,14],[29,0,29,6],[30,10,30,14],[32,10,32,14],[33,10,33,14],[31,10,31,14],[29,7,29,14],[20,10,20,14],[26,10,26,14],[27,10,27,14],[28,10,28,14]]}
["4.[별지] 작업 전 안전점검(TBM) 회의록"]
[{"$f":"\"ToolBoxMeeting일지 / \" & A16","v":"ToolBoxMeeting일지 / 도장(내부도장-)"}]
["TBM 일시",null,null,null,"년",null,"월",null,"일",null,"날씨 :"]
["작업장명",null,{"$f":"TBM템플릿!B2","v":0},null,null,null,null,null,"TBM장소 :",{"$f":"TBM템플릿!F2","v":0}]
["작업내용",null,{"$f":"IF(A16=\"\",\"\",IF(VLOOKUP(A16,TBM템플릿!$A$5:$N$112,6,FALSE)=\"\",\"\",VLOOKUP(A16,TBM템플릿!$A$5:$N$112,6,FALSE)))","v":""}]
[]
["■작업 내용 및 TBM시 전달내용\n※주요 작업내용 및 중대재해로 이어질 수 있는 위험요인과 안전조치 여부 재확인\n  근로자의 작업안전 준수사항 및 주의사항, 재해/위험상황 발생 시 보고 철차 등"]
["공통 안전 조치 사항",null,null,null,null,null,null,"TBM참가자 확인"]
["■작업 중 안전시설 유지(부득이 철거시 안전조치 후 작업, 작업 후 반드시 안전시설 복구)",null,null,null,null,null,null,"TBM리더 ",null,{"$f":"\"소속 : \" &IF(A16=\"\",\"\",IF(VLOOKUP(A16,TBM템플릿!$A$5:$N$112,6,FALSE)=\"\",\"\",VLOOKUP(A16,TBM템플릿!$A$5:$N$112,2,FALSE)))","v":"소속 : "},null,{"$f":"\"성명 : \"&IF(A16=\"\",\"\",IF(VLOOKUP(A16,TBM템플릿!$A$5:$N$112,6,FALSE)=\"\",\"\",VLOOKUP(A16,TBM템플릿!$A$5:$N$112,3,FALSE)))","v":"성명 : "}]
[null,null,null,null,null,null,null,null,null,{"$f":"\"  연락처:             \" &IF(A16=\"\",\"\",IF(VLOOKUP(A16,TBM템플릿!$A$5:$N$112,6,FALSE)=\"\",\"\",VLOOKUP(A16,TBM템플릿!$A$5:$N$112,5,FALSE)))","v":"  연락처:             "}]
["■작업 중 / 작업 후 정리정돈 필수 확인\n   (안전은 정리정돈에서 시작!)",null,null,null,null,null,null,"※상기TBM 리더는 금일 현장에서 위급사항 발생시 현장소장을 보조하여 지시한 업무를 수행 함"]
["■공정에 맞는 개인안전보호구 착용 필수\n   (안전모, 안전화, 안전대 착용 등)\n",null,null,null,null,null,null,"※참가자 전원은 공동안전조치사항 및 해당 작업에 대한 안전조치 사항을 반드시 읽고 숙지하며, 미비된 안전조치를 확인하고 작업을 시작하시기 바랍니다."]
[]
["■건설기계 사용시 신호수 등 안전전담요원 \n   배치 필수, 기계 전도방지 필수"]
[null,null,null,null,null,null,null,"번호","구분","성명(자필)","전화번호"]
["도장(내부도장-)",null,null,null,null,null,null,1,null,null,"010-"]
[{"$f":"IF(A16=\"\",\"\",\"▶\"&VLOOKUP(A16,TBM템플릿!$A$5:$Q$112,7,FALSE))","v":"▶작업발판 설치시 발판고정,안전난간대설치,전도방지 조치 등 실시, 불량발판 사용금지"},null,null,null,null,null,null,{"$f":"H16+1","v":2},null,null,"010-"]
[null,null,null,null,null,null,null,{"$f":"H17+1","v":3},null,null,"010-"]
[null,null,null,null,null,null,null,{"$f":"H18+1","v":4},null,null,"010-"]
[null,null,null,null,null,null,null,5,null,null,"010-",null,null,null,null,null,null,null,null,null,"`"]
[{"$f":"IF(A16=\"\",\"\",\"▶\"&VLOOKUP(A16,TBM템플릿!$A$5:$Q$112,8,FALSE))","v":"▶이동식 틀비계 안전난간대 및 아웃트리거 설치 후 작업을 실시하고 틀비계 탑승상태에서 이동금지 "},null,null,null,null,null,null,6,null,null,"010-"]
[null,null,null,null,null,null,null,7,null,null,"010-"]
[null,null,null,null,null,null,null,8,null,null,"010-"]
[null,null,null,null,null,null,null,9,null,null,"010-"]
[{"$f":"IF(A16=\"\",\"\",\"▶\"&VLOOKUP(A16,TBM템플릿!$A$5:$Q$112,9,FALSE))","v":"▶도장작업시 주변에 용접작업 및 화기사용금지, 소화기 비치"},null,null,null,null,null,null,10,null,null,"010-"]
[null,null,null,null,null,null,null,11,null,null,"010-"]
[null,null,null,null,null,null,null,12,null,null,"010-"]
[null,null,null,null,null,null,null,13,null,null,"010-"]
[null,null,null,null,null,null,null,14,null,null,"010-"]
["추가 안전 및 전달사항",null,null,null,null,null,null,"조                 공"]
[null,null,null,null,null,null,null,1,null,null,"010-"]
[null,null,null,null,null,null,null,{"$f":"H31+1","v":2},null,null,"010-"]
[null,null,null,null,null,null,null,3,null,null,"010-"]
[null,null,null,null,null,null,null,4,null,null,"010-"]
[null,null,null,null,null,null,null,5,null,null,"010-"]
[null,null,null,null,null,null,null,6,null,null,"010-"]

{"sheet":"TBM회의록(내부도장작업","index":3,"n_rows":36,"n_cols":21,"rows_kept":36,"cut":false,"hidden":false,"merged":[[33,10,33,14],[34,0,34,6],[34,10,34,14],[35,0,35,6],[35,10,35,14],[32,10,32,14],[20,0,23,6],[20,10,20,14],[21,10,21,14],[22,10,22,14],[23,10,23,14],[24,0,28,6],[24,10,24,14],[25,10,25,14],[26,10,26,14],[27,10,27,14],[28,10,28,14],[29,0,29,6],[29,7,29,14],[30,10,30,14],[31,10,31,14],[15,0,15,6],[15,10,15,14],[16,0,19,6],[16,10,16,14],[17,10,17,14],[18,10,18,14],[19,10,19,14],[10,0,10,6],[10,7,10,14],[11,0,12,6],[11,7,13,14],[13,0,14,6],[14,10,14,14],[4,0,4,1],[4,2,4,14],[6,0,6,14],[7,0,7,6],[7,7,7,14],[8,0,9,6],[8,7,9,8],[8,9,8,10],[8,11,8,14],[9,9,9,14],[3,0,3,1],[3,2,3,7],[3,9,3,14],[1,0,1,14],[2,0,2,1],[2,2,2,3],[2,10,2,11],[2,12,2,14]]}
["4.[별지] 작업 전 안전점검(TBM) 회의록"]
[{"$f":"\"ToolBoxMeeting일지 / \" & A16","v":"ToolBoxMeeting일지 / 도장(내부도장)"}]
["TBM 일시",null,null,null,"년",null,"월",null,"일",null,"날씨 :"]
["작업장명",null,{"$f":"TBM템플릿!B2","v":0},null,null,null,null,null,"TBM장소 :",{"$f":"TBM템플릿!F2","v":0}]
["작업내용",null,{"$f":"IF(A16=\"\",\"\",IF(VLOOKUP(A16,TBM템플릿!$A$5:$N$112,6,FALSE)=\"\",\"\",VLOOKUP(A16,TBM템플릿!$A$5:$N$112,6,FALSE)))","v":""}]
[]
["■작업 내용 및 TBM시 전달내용\n※주요 작업내용 및 중대재해로 이어질 수 있는 위험요인과 안전조치 여부 재확인\n  근로자의 작업안전 준수사항 및 주의사항, 재해/위험상황 발생 시 보고 철차 등"]
["공통 안전 조치 사항",null,null,null,null,null,null,"TBM참가자 확인"]
["■작업 중 안전시설 유지(부득이 철거시 안전조치 후 작업, 작업 후 반드시 안전시설 복구)",null,null,null,null,null,null,"TBM리더 ",null,{"$f":"\"소속 : \" &IF(A16=\"\",\"\",IF(VLOOKUP(A16,TBM템플릿!$A$5:$N$112,6,FALSE)=\"\",\"\",VLOOKUP(A16,TBM템플릿!$A$5:$N$112,2,FALSE)))","v":"소속 : "},null,{"$f":"\"성명 : \"&IF(A16=\"\",\"\",IF(VLOOKUP(A16,TBM템플릿!$A$5:$N$112,6,FALSE)=\"\",\"\",VLOOKUP(A16,TBM템플릿!$A$5:$N$112,3,FALSE)))","v":"성명 : "}]
[null,null,null,null,null,null,null,null,null,{"$f":"\"  연락처:             \" &IF(A16=\"\",\"\",IF(VLOOKUP(A16,TBM템플릿!$A$5:$N$112,6,FALSE)=\"\",\"\",VLOOKUP(A16,TBM템플릿!$A$5:$N$112,5,FALSE)))","v":"  연락처:             "}]
["■작업 중 / 작업 후 정리정돈 필수 확인\n   (안전은 정리정돈에서 시작!)",null,null,null,null,null,null,"※상기TBM 리더는 금일 현장에서 위급사항 발생시 현장소장을 보조하여 지시한 업무를 수행 함"]
["■공정에 맞는 개인안전보호구 착용 필수\n   (안전모, 안전화, 안전대 착용 등)\n",null,null,null,null,null,null,"※참가자 전원은 공동안전조치사항 및 해당 작업에 대한 안전조치 사항을 반드시 읽고 숙지하며, 미비된 안전조치를 확인하고 작업을 시작하시기 바랍니다."]
[]
["■건설기계 사용시 신호수 등 안전전담요원 \n   배치 필수, 기계 전도방지 필수"]
[null,null,null,null,null,null,null,"번호","구분","성명(자필)","전화번호"]
["도장(내부도장)",null,null,null,null,null,null,1,null,null,"010-"]
[{"$f":"IF(A16=\"\",\"\",\"▶\"&VLOOKUP(A16,TBM템플릿!$A$5:$Q$112,7,FALSE))","v":"▶작업발판 설치시 체크?"},null,null,null,null,null,null,{"$f":"H16+1","v":2},null,null,"010-"]
[null,null,null,null,null,null,null,{"$f":"H17+1","v":3},null,null,"010-"]
[null,null,null,null,null,null,null,{"$f":"H18+1","v":4},null,null,"010-"]
[null,null,null,null,null,null,null,5,null,null,"010-",null,null,null,null,null,null,null,null,null,"`"]
[{"$f":"IF(A16=\"\",\"\",\"▶\"&VLOOKUP(A16,TBM템플릿!$A$5:$Q$112,8,FALSE))","v":"▶이동식 틀비계 설치 기준?"},null,null,null,null,null,null,6,null,null,"010-"]
[null,null,null,null,null,null,null,7,null,null,"010-"]
[null,null,null,null,null,null,null,8,null,null,"010-"]
[null,null,null,null,null,null,null,9,null,null,"010-"]
[{"$f":"IF(A16=\"\",\"\",\"▶\"&VLOOKUP(A16,TBM템플릿!$A$5:$Q$112,9,FALSE))","v":"▶도장 작업시 화재예방 조치?"},null,null,null,null,null,null,10,null,null,"010-"]
[null,null,null,null,null,null,null,11,null,null,"010-"]
[null,null,null,null,null,null,null,12,null,null,"010-"]
[null,null,null,null,null,null,null,13,null,null,"010-"]
[null,null,null,null,null,null,null,14,null,null,"010-"]
["추가 안전 및 전달사항",null,null,null,null,null,null,"조                 공"]
[null,null,null,null,null,null,null,1,null,null,"010-"]
[null,null,null,null,null,null,null,{"$f":"H31+1","v":2},null,null,"010-"]
[null,null,null,null,null,null,null,3,null,null,"010-"]
[null,null,null,null,null,null,null,4,null,null,"010-"]
[null,null,null,null,null,null,null,5,null,null,"010-"]
[null,null,null,null,null,null,null,6,null,null,"010-"]

{"sheet":"TBM템플릿","index":4,"n_rows":8,"n_cols":16,"rows_kept":8,"cut":false,"hidden":false,"merged":[[2,12,3,12],[2,13,3,13],[2,10,3,10],[0,0,0,6],[1,1,1,2],[1,3,1,4],[1,6,1,15],[2,0,3,0],[2,6,3,6],[2,7,3,7],[2,8,3,8],[2,9,3,9],[2,1,2,4],[2,14,3,14],[2,15,3,15],[2,5,3,5],[2,11,3,11]]}
["TBM일지 템플릿 목록"]
["현 장 이 름 :",null,null,"실 시 위 치 :",null,null,"잔 류 위 험 요 인"]
["공종명","TBM리더(작업반장 or 작업자 중 대표)",null,null,null,"작업 내용 요약","요인-01","요인-02","요인-03","요인-04","요인-05","요인-06","요인-07","요인-08","요인-09","요인-10"]
[null,"소속","이름","직책","연락처"]
["도장(외부도장)",null,null,null,null,null,"달비계 설치시 체크 내용?","작업발판 설치시 체크 내용?","작업공구 낙하방지 방법?"]
["도장(외부도장-)",null,null,null,null,null,"달비계작업시 로프는 2개소이상 견고하게 결속, 구명줄에 코브라 안전대 체결","작업발판 설치시 발판고정,안전난간대설치,전도방지 조치 등 실시, 불량 및 불안전발판 설치 절대금지","작업공구 탈락방지 결속 줄 설치 및 하부에 출입통제구역을 만들고 신호수 배치, 안전표지판 설치"," 작업대로 사다리의 사용금지, 적합한 작업발판 설치","달대 로프는 난강파이프결속 금지, 반드시 골조면에 로프 지지할 것(관리감독 철저)","메인로프가 꺽이는 부위에 패드를 설치하여 로프 소선의 끊어짐을 방지, 보조로프 설치","좌대 탑승전 보조로프에 추락방지대(코브라)를 걸고 젠다이에 탑승토록 조치","작업공구 탈락방지 결속 줄 설치 및 하부에 출입통제구역을 만들고 신호수 배치, 안전표지판 설치"]
["도장(내부도장)",null,null,null,null,null,"작업발판 설치시 체크?","이동식 틀비계 설치 기준?","도장 작업시 화재예방 조치?"]
["도장(내부도장-)",null,null,null,null,null,"작업발판 설치시 발판고정,안전난간대설치,전도방지 조치 등 실시, 불량발판 사용금지","이동식 틀비계 안전난간대 및 아웃트리거 설치 후 작업을 실시하고 틀비계 탑승상태에서 이동금지 ","도장작업시 주변에 용접작업 및 화기사용금지, 소화기 비치","이동식 틀비계 안전난간대 및 아웃트리거 설치 후 작업을 실시하고 틀비계 탑승상태에서 이동금지 ","도장작업시 주변에 용접작업 및 화기사용금지, 소화기 비치","안면 마스크, 보안경 착용 및 정기적 휴식"," 도장 작업시 호흡용 보호구 착용 철저"]